[Event "3rd Memorial Warakomska 2019"]
[Site "Suwalki"]
[Date "2019.08.07"]
[Round "4.22"]
[White "Antolak, Julia"]
[Black "Karavade, Eesha"]
[Result "1/2-1/2"]
[ECO "B90"]
[WhiteElo "2258"]
[BlackElo "2355"]
[Annotator "NA"]
[PlyCount "89"]
[EventDate "2019.08.05"]
[EventType "swiss"]
[EventCountry "POL"]
[SourceTitle "playchess.com"]
[Source "ChessBase"]
[SourceQuality "1"]
[TimeControl "40/5400+30:1800+30"]

1. e4 {[%emt 0:00:00]} c5 {[%emt 0:00:00]} 2. Nf3 {[%emt 0:00:00]} d6 {[%emt 0:00:12]} 3. d4 {[%emt 0:00:00]} cxd4 {[%emt 0:00:06]} 4. Nxd4 {[%emt 0:00:00]} Nf6 {[%emt 0:00:08]} 5. Nc3 {[%emt 0:00:00]} a6 {[%emt 0:00:06]} 6. Be3 {[%emt 0:00:01]} e5 {[%emt 0:00:14]} 7. Nb3 {[%emt 0:00:05]} Be6 {[%emt 0:00:07]} 8. f3 {[%emt 0:00:06]} h5 {[%emt 0:00:20]} 9. Nd5 {[%emt 0:00:18]} Bxd5 {[%emt 0:01:12]} 10. exd5 {[%emt 0:00:05]} Nbd7 {[%emt 0:00:06]} 11. Qd2 {[%emt 0:00:11]} Qc7 {[%emt 0:00:24]} 12. O-O-O {[%emt 0:01:45]} Be7 {[%emt 0:00:16]} 13. Kb1 {[%emt 0:02:02]} Nb6 {[%emt 0:00:39]} 14. Qa5 {[%emt 0:13:33]} Bd8 {[%emt 0:02:34]} 15. c4 {[%emt 0:05:36]} Rc8 {[%emt 0:01:15]} 16. Bxb6 {[%emt 0:06:05]} Qxb6 {[%emt 0:00:08]} 17. Qxb6 {[%emt 0:00:25]} Bxb6 {[%emt 0:00:09]} 18. h4 {[%emt 0:00:34]} g6 {[%emt 0:04:05]} 19. Nd2 {[%emt 0:06:01]} Ke7 {[%emt 0:12:16]} 20. Bd3 {[%emt 0:05:13]} Rhg8 {[%emt 0:07:23]} 21. b3 {[%emt 0:09:56]} Nd7 {[%emt 0:02:11]} 22. Ne4 {[%emt 0:02:44]} Nc5 {[%emt 0:00:14]} 23. Bc2 {[%emt 0:01:58]} f5 {[%emt 0:20:59]} 24. Ng5 {[%emt 0:02:39]} a5 {[%emt 0:00:04]} 25. Rdf1 {[%emt 0:03:23]} a4 {[%emt 0:07:36]} 26. g4 {[%emt 0:04:26]} axb3 {[%emt 0:00:13]} 27. axb3 {[%emt 0:00:06]} Rcf8 {[%emt 0:00:05]} 28. Nh7 {[%emt 0:07:23]} Ra8 {[%emt 0:03:17]} 29. gxf5 {[%emt 0:01:39]} gxf5 {[%emt 0:00:02]} 30. Rfg1 {[%emt 0:01:01]} Na6 {[%emt 0:00:32]} 31. Rxg8 {[%emt 0:03:06]} Rxg8 {[%emt 0:00:04]} 32. Bxf5 {[%emt 0:02:35]} Rg2 {[%emt 0:04:05]} 33. Ng5 {[%emt 0:03:50]} Nb4 {[%emt 0:00:04]} 34. Ne6 {[%emt 0:01:06]} Na2 {[%emt 0:24:04]} 35. Bc2 {[%emt 0:03:01]} Nb4 {[%emt 0:01:02]} 36. Bf5 {[%emt 0:00:14]} Kf6 {[%emt 0:00:50]} 37. Be4 {[%emt 0:00:40]} Rg1+ {[%emt 0:03:49]} 38. Rxg1 {[%emt 0:00:09]} Bxg1 {[%emt 0:00:02]} 39. Nd8 {[%emt 0:03:23]} b6 {[%emt 0:00:38]} 40. Ne6 {[%emt 0:00:00]} Bf2 {[%emt 0:00:00]} 41. Nc7 {[%emt 0:14:59]} Bxh4 {[%emt 0:08:38]} 42. Ne8+ {[%emt 0:02:52]} Ke7 {[%emt 0:00:07]} 43. Ng7 {[%emt 0:01:36]} Bf2 {[%emt 0:00:10]} 44. Nxh5 {[%emt 0:00:12]} Kf7 {[%emt 0:00:03]} 45. Kc1 {[%emt 0:02:09]} 1/2-1/2

[Event "3rd Memorial Warakomska 2019"]
[Site "Suwalki"]
[Date "2019.08.07"]
[Round "4.23"]
[White "Lewtak, Damian"]
[Black "Reza, Wojciech"]
[Result "1/2-1/2"]
[ECO "A05"]
[WhiteElo "2354"]
[BlackElo "2261"]
[Annotator "NA"]
[PlyCount "25"]
[EventDate "2019.08.05"]
[EventType "swiss"]
[EventCountry "POL"]
[SourceTitle "playchess.com"]
[Source "ChessBase"]
[SourceQuality "1"]
[TimeControl "40/5400+30:1800+30"]

1. Nf3 {[%emt 0:00:00]} Nf6 {[%emt 0:00:00]} 2. c4 {[%emt 0:00:00]} g6 {[%emt 0:00:36]} 3. Nc3 {[%emt 0:00:00]} Bg7 {[%emt 0:04:18]} 4. g3 {[%emt 0:00:31]} O-O {[%emt 0:03:07]} 5. Bg2 {[%emt 0:00:06]} d5 {[%emt 0:01:45]} 6. cxd5 {[%emt 0:00:23]} Nxd5 {[%emt 0:00:11]} 7. O-O {[%emt 0:00:22]} e5 {[%emt 0:08:48]} 8. Nxd5 {[%emt 0:08:45]} Qxd5 {[%emt 0:00:22]} 9. d3 {[%emt 0:00:07]} Nc6 {[%emt 0:08:59]} 10. Be3 {[%emt 0:03:58]} Qd8 {[%emt 0:15:08]} 11. Nd2 {[%emt 0:06:52]} Nd4 {[%emt 0:01:46]} 12. Rc1 {[%emt 0:08:40]} c6 {[%emt 0:03:58]} 13. Re1 {[%emt 0:14:27]} 1/2-1/2

[Event "3rd Memorial Warakomska 2019"]
[Site "Suwalki"]
[Date "2019.08.07"]
[Round "4.24"]
[White "Punin, Andrii"]
[Black "Dzhuguryan, Tygran"]
[Result "1/2-1/2"]
[ECO "B31"]
[WhiteElo "2305"]
[BlackElo "2230"]
[Annotator "NA"]
[PlyCount "77"]
[EventDate "2019.08.05"]
[EventType "swiss"]
[EventCountry "POL"]
[SourceTitle "playchess.com"]
[Source "ChessBase"]
[SourceQuality "1"]
[TimeControl "40/5400+30:1800+30"]

1. e4 {[%emt 0:00:00]} c5 {[%emt 0:00:40]} 2. Nf3 {[%emt 0:00:00]} Nc6 {[%emt 0:00:18]} 3. Bb5 {[%emt 0:00:02]} g6 {[%emt 0:01:37]} 4. O-O {[%emt 0:00:13]} Bg7 {[%emt 0:00:30]} 5. Re1 {[%emt 0:00:09]} e5 {[%emt 0:00:44]} 6. Bxc6 {[%emt 0:00:14]} dxc6 {[%emt 0:00:46]} 7. d3 {[%emt 0:00:07]} Qe7 {[%emt 0:05:50]} 8. Nbd2 {[%emt 0:00:29]} Nf6 {[%emt 0:01:18]} 9. a3 {[%emt 0:00:12]} O-O {[%emt 0:05:57]} 10. b4 {[%emt 0:00:33]} Nd7 {[%emt 0:07:05]} 11. Nb3 {[%emt 0:02:00]} h6 {[%emt 0:02:18]} 12. Nxc5 {[%emt 0:00:35]} Nxc5 {[%emt 0:00:08]} 13. bxc5 {[%emt 0:00:06]} Qxc5 {[%emt 0:00:03]} 14. a4 {[%emt 0:00:47]} Re8 {[%emt 0:02:18]} 15. Nd2 {[%emt 0:03:46]} Be6 {[%emt 0:01:33]} 16. a5 {[%emt 0:06:22]} Qe7 {[%emt 0:02:54]} 17. Ba3 {[%emt 0:01:59]} Qc7 {[%emt 0:00:17]} 18. Bc5 {[%emt 0:03:06]} b6 {[%emt 0:00:47]} 19. axb6 {[%emt 0:00:06]} axb6 {[%emt 0:00:02]} 20. Be3 {[%emt 0:00:21]} b5 {[%emt 0:13:13]} 21. Qb1 {[%emt 0:02:31]} Bf8 {[%emt 0:03:35]} 22. Qb2 {[%emt 0:01:24]} Ra4 {[%emt 0:01:03]} 23. Nb3 {[%emt 0:03:54]} Rea8 {[%emt 0:09:52]} 24. Nc5 {[%emt 0:01:17]} Bxc5 {[%emt 0:00:13]} 25. Bxc5 {[%emt 0:00:58]} Ra2 {[%emt 0:00:08]} 26. Rxa2 {[%emt 0:00:36]} Rxa2 {[%emt 0:00:03]} 27. Qc3 {[%emt 0:00:52]} g5 {[%emt 0:04:33]} 28. Ra1 {[%emt 0:04:14]} Rxa1+ {[%emt 0:05:13]} 29. Qxa1 {[%emt 0:00:11]} Kg7 {[%emt 0:01:46]} 30. f3 {[%emt 0:00:21]} h5 {[%emt 0:01:32]} 31. g3 {[%emt 0:02:50]} Kg6 {[%emt 0:01:52]} 32. Kf2 {[%emt 0:00:19]} f6 {[%emt 0:01:42]} 33. Ke3 {[%emt 0:01:47]} Qd7 {[%emt 0:02:01]} 34. Qa8 {[%emt 0:00:43]} Qc8 {[%emt 0:00:04]} 35. Qa7 {[%emt 0:00:21]} Qd7 {[%emt 0:00:07]} 36. Qb8 {[%emt 0:00:47]} Qc8 {[%emt 0:01:02]} 37. Qd6 {[%emt 0:01:17]} Qd7 {[%emt 0:00:05]} 38. Qf8 {[%emt 0:02:46]} Qc8 {[%emt 0:00:05]} 39. Qxc8 {[%emt 0:00:32]} 1/2-1/2

[Event "3rd Memorial Warakomska 2019"]
[Site "Suwalki"]
[Date "2019.08.07"]
[Round "4.25"]
[White "Sowul, Bartosz"]
[Black "Zylka, Stanislaw"]
[Result "1/2-1/2"]
[ECO "A05"]
[WhiteElo "2210"]
[BlackElo "2308"]
[Annotator "ChessBase"]
[PlyCount "198"]
[EventDate "2019.08.05"]
[EventType "swiss"]
[EventCountry "POL"]
[SourceTitle "playchess.com"]
[Source "ChessBase"]
[SourceQuality "1"]
[TimeControl "40/5400+30:1800+30"]

1. Nf3 {[%emt 0:00:00]} Nf6 {[%emt 0:00:00]} 2. c4 {[%emt 0:00:00]} g6 {[%emt 0:00:15]} 3. b3 {[%emt 0:00:02]} Bg7 {[%emt 0:00:38]} 4. Bb2 {[%emt 0:00:05]} d6 {[%emt 0:00:43]} 5. d4 {[%emt 0:00:08]} O-O {[%emt 0:00:47]} 6. g3 {[%emt 0:00:09]} e5 {[%emt 0:03:12]} 7. dxe5 {[%emt 0:00:40]} dxe5 {[%emt 0:00:49]} 8. Qxd8 {[%emt 0:00:11]} Rxd8 {[%emt 0:00:10]} 9. Nxe5 {[%emt 0:00:43]} Ng4 {[%emt 0:16:31]} 10. Nd3 {[%emt 0:03:59]} Bxb2 {[%emt 0:00:42]} 11. Nxb2 {[%emt 0:00:06]} Nc6 {[%emt 0:00:22]} 12. Nc3 {[%emt 0:07:24]} Nd4 {[%emt 0:13:14]} 13. Rc1 {[%emt 0:04:08]} Bf5 {[%emt 0:00:41]} 14. h3 {[%emt 0:10:13]} Nf6 {[%emt 0:01:22]} 15. Bg2 {[%emt 0:05:44]} Nc2+ {[%emt 0:00:54]} 16. Kf1 {[%emt 0:00:09]} Rd2 {[%emt 0:00:48]} 17. g4 {[%emt 0:03:56]} Nb4 {[%emt 0:03:52]} 18. gxf5 {[%emt 0:11:22]} Rxb2 {[%emt 0:00:15]} 19. fxg6 {[%emt 0:00:07]} hxg6 {[%emt 0:00:13]} 20. a3 {[%emt 0:07:30]} Na2 {[%emt 0:03:44]} 21. Rb1 {[%emt 0:02:03]} Rc2 {[%emt 0:01:12]} 22. Ne4 {[%emt 0:02:47]} Nh5 {[%emt 0:09:27]} 23. Bf3 {[%emt 0:03:40]} Rd8 {[%emt 0:00:27]} 24. Bxh5 {[%emt 0:15:43]} gxh5 {[%emt 0:00:08]} 25. Rg1+ {[%emt 0:00:04]} Kf8 {[%emt 0:00:25]} 26. Rg3 {[%emt 0:00:49]} Re8 {[%emt 0:15:08]} 27. Ng5 {[%emt 0:09:59]} f6 {[%emt 0:09:41]} 28. Nh7+ {[%emt 0:01:29]} Kf7 {[%emt 0:00:06]} 29. Rd1 {[%emt 0:04:52]} Rc1 {[%emt 0:08:44]} 30. Rxc1 {[%emt 0:00:56]} Nxc1 {[%emt 0:00:03]} 31. Rf3 {[%emt 0:00:15]} Rxe2 {[%emt 0:04:58]} 32. Nxf6 {[%emt 0:00:45]} Rb2 {[%emt 0:00:28]} 33. Nxh5+ {[%emt 0:00:51]} Kg6 {[%emt 0:02:26]} 34. Nf4+ {[%emt 0:00:20]} Kh6 {[%emt 0:00:05]} 35. b4 {[%emt 0:03:16]} Nb3 {[%emt 0:00:02]} 36. Re3 {[%emt 0:02:25]} Nd2+ {[%emt 0:00:16]} 37. Kg2 {[%emt 0:00:09]} Nxc4 {[%emt 0:00:27]} 38. Rc3 {[%emt 0:00:30]} b5 {[%emt 0:00:24]} 39. Nd5 {[%emt 0:00:15]} a5 {[%emt 0:05:16]} 40. Nxc7 {[%emt 0:00:00]} axb4 {[%emt 0:00:00]} 41. axb4 {[%emt 0:01:34]} Rxb4 {[%emt 0:01:22]} 42. Nxb5 {[%emt 0:01:19]} Rxb5 {[%emt 0:00:11]} 43. Rxc4 {[%emt 0:00:06]} Kg5 {[%emt 0:00:57]} 44. Rg4+ {[%emt 0:01:53]} Kf5 {[%emt 0:01:36]} 45. Kg3 {[%emt 0:00:29]} Rb3+ {[%emt 0:00:15]} 46. Kg2 {[%emt 0:00:09]} Ra3 {[%emt 0:00:19]} 47. Rg8 {[%emt 0:00:23]} Rb3 {[%emt 0:00:36]} 48. Rf8+ {[%emt 0:01:06]} Kg5 {[%emt 0:00:20]} 49. Rf3 {[%emt 0:00:28]} Rb1 {[%emt 0:01:17]} 50. Rg3+ {[%emt 0:01:09]} Kf5 {[%emt 0:00:08]} 51. h4 {[%emt 0:03:24]} Rb6 {[%emt 0:06:19]} 52. Ra3 {[%emt 0:03:37]} Kg4 {[%emt 0:00:49]} 53. Ra4+ {[%emt 0:00:11]} Kh5 {[%emt 0:00:07]} 54. Kg3 {[%emt 0:00:17]} Rb3+ {[%emt 0:02:35]} 55. f3 {[%emt 0:00:21]} Rb5 {[%emt 0:01:15]} 56. Ra6 {[%emt 0:01:04]} Rc5 {[%emt 0:00:57]} 57. Ra8 {[%emt 0:00:11]} Rb5 {[%emt 0:02:07]} 58. Rh8+ {[%emt 0:00:25]} Kg6 {[%emt 0:00:07]} 59. Kg4 {[%emt 0:00:39]} Rb4+ {[%emt 0:00:48]} 60. f4 {[%emt 0:02:23]} Ra4 {[%emt 0:00:33]} 61. Rb8 {[%emt 0:03:19]} Ra6 {[%emt 0:01:04]} 62. Rg8+ {[%emt 0:02:41]} Kf7 {[%emt 0:00:28]} 63. Rg5 {[%emt 0:03:08]} Kf6 {[%emt 0:00:51]} 64. Rh5 {[%emt 0:02:02]} Ra1 {[%emt 0:00:31]} 65. Rh6+ {[%emt 0:00:37]} Kg7 {[%emt 0:00:07]} 66. Rb6 {[%emt 0:00:08]} Ra5 {[%emt 0:00:45]} 67. Rb7+ {[%emt 0:00:58]} Kf6 {[%emt 0:01:56]} 68. Rb6+ {[%emt 0:01:26]} Kg7 {[%emt 0:00:08]} 69. Rc6 {[%emt 0:02:58]} Rb5 {[%emt 0:00:08]} 70. Ra6 {[%emt 0:00:06]} Rc5 {[%emt 0:00:03]} 71. h5 {[%emt 0:02:46]} Rb5 {[%emt 0:00:24]} 72. Re6 {[%emt 0:00:45]} Ra5 {[%emt 0:00:34]} 73. Re5 {[%emt 0:01:28]} Ra1 {[%emt 0:00:09]} 74. Kg5 {[%emt 0:00:59]} Rg1+ {[%emt 0:12:24]} 75. Kf5 {[%emt 0:00:10]} Kh6 {[%emt 0:00:42]} 76. Ke6 {[%emt 0:02:16]} Rf1 {[%emt 0:00:18]} 77. f5 {[%emt 0:02:46]} Kxh5 {[%emt 0:00:06]} 78. Kf7 {[%emt 0:00:19]} Kh6 {[%emt 0:00:51]} 79. Re6+ {[%emt 0:00:44]} Kh7 {[%emt 0:00:19]} 80. Re5 {[%emt 0:00:48]} Ra1 {[%emt 0:01:05]} 81. f6 {[%emt 0:00:27]} Ra7+ {[%emt 0:00:21]} 82. Re7 {[%emt 0:00:07]} Ra8 {[%emt 0:00:53]} 83. Rb7 {[%emt 0:00:47]} Kh6 {[%emt 0:02:33]} 84. Rc7 {[%emt 0:00:24]} Kh7 {[%emt 0:00:38]} 85. Rd7 {[%emt 0:00:20]} Kh6 {[%emt 0:00:46]} 86. Rd1 {[%emt 0:00:40]} Ra7+ {[%emt 0:00:29]} 87. Ke6 {[%emt 0:00:09]} Ra6+ {[%emt 0:01:02]} 88. Rd6 {[%emt 0:00:13]} Ra7 {[%emt 0:00:51]} 89. Rd7 {[%emt 0:00:46]} Ra8 {[%emt 0:00:22]} 90. Kf7 {[%emt 0:00:38]} Kh7 {[%emt 0:00:10]} 91. Re7 {[%emt 0:00:20]} Kh6 {[%emt 0:00:19]} 92. Re8 {[%emt 0:00:26]} Ra7+ {[%emt 0:00:19]} 93. Ke6 {[%emt 0:00:39]} Ra6+ {[%emt 0:00:39]} 94. Kf5 {[%emt 0:00:14]} Ra5+ {[%emt 0:00:18]} 95. Re5 {[%emt 0:00:08]} Ra6 {[%emt 0:00:30]} 96. Rd5 {[%emt 0:00:51]} Ra1 {[%emt 0:01:31]} 97. Rd4 {[%emt 0:00:56]} Ra5+ {[%emt 0:00:18]} 98. Ke6 {[%emt 0:00:11]} Ra6+ {[%emt 0:00:12]} 99. Rd6 {[%emt 0:00:10]} Ra7 {[%emt 0:00:24]} 1/2-1/2

[Event "3rd Memorial Warakomska 2019"]
[Site "Suwalki"]
[Date "2019.08.07"]
[Round "4.26"]
[White "Zaika, Daniil"]
[Black "Kulon, Klaudia"]
[Result "1/2-1/2"]
[ECO "E67"]
[WhiteElo "2216"]
[BlackElo "2331"]
[Annotator "NA"]
[PlyCount "63"]
[EventDate "2019.08.05"]
[EventType "swiss"]
[EventCountry "POL"]
[SourceTitle "playchess.com"]
[Source "ChessBase"]
[SourceQuality "1"]
[TimeControl "40/5400+30:1800+30"]

1. d4 {[%emt 0:00:00]} Nf6 {[%emt 0:02:36]} 2. c4 {[%emt 0:00:05]} g6 {[%emt 0:00:12]} 3. g3 {[%emt 0:00:09]} Bg7 {[%emt 0:00:03]} 4. Bg2 {[%emt 0:00:08]} O-O {[%emt 0:00:13]} 5. Nc3 {[%emt 0:00:08]} d6 {[%emt 0:00:04]} 6. Nf3 {[%emt 0:00:20]} Nbd7 {[%emt 0:00:05]} 7. O-O {[%emt 0:00:20]} e5 {[%emt 0:00:05]} 8. h3 {[%emt 0:00:09]} c6 {[%emt 0:00:08]} 9. e4 {[%emt 0:00:42]} Re8 {[%emt 0:00:07]} 10. Re1 {[%emt 0:04:36]} exd4 {[%emt 0:01:15]} 11. Nxd4 {[%emt 0:00:06]} Qb6 {[%emt 0:01:14]} 12. Nb3 {[%emt 0:01:52]} a5 {[%emt 0:05:07]} 13. Be3 {[%emt 0:08:25]} Qc7 {[%emt 0:05:59]} 14. c5 {[%emt 0:14:44]} dxc5 {[%emt 0:03:09]} 15. Nxc5 {[%emt 0:01:18]} Ne5 {[%emt 0:05:27]} 16. Qc2 {[%emt 0:05:40]} b6 {[%emt 0:02:29]} 17. N5a4 {[%emt 0:01:06]} Rb8 {[%emt 0:08:14]} 18. f4 {[%emt 0:03:06]} Nc4 {[%emt 0:01:09]} 19. Bf2 {[%emt 0:00:11]} b5 {[%emt 0:05:48]} 20. Nc5 {[%emt 0:00:51]} Nd7 {[%emt 0:00:16]} 21. e5 {[%emt 0:05:49]} Nxc5 {[%emt 0:05:19]} 22. Bxc5 {[%emt 0:00:05]} Bf5 {[%emt 0:00:05]} 23. Ne4 {[%emt 0:01:55]} Rbd8 {[%emt 0:01:11]} 24. Rad1 {[%emt 0:01:09]} Rd5 {[%emt 0:04:04]} 25. Qf2 {[%emt 0:08:17]} Nxb2 {[%emt 0:08:36]} 26. Rxd5 {[%emt 0:06:47]} cxd5 {[%emt 0:01:59]} 27. Nd6 {[%emt 0:00:45]} Re6 {[%emt 0:04:10]} 28. Nxb5 {[%emt 0:12:46]} Qc6 {[%emt 0:04:31]} 29. Na7 {[%emt 0:00:14]} Qc7 {[%emt 0:02:07]} 30. Nb5 {[%emt 0:02:25]} Qc6 {[%emt 0:00:01]} 31. Na7 {[%emt 0:00:42]} Qc7 {[%emt 0:00:23]} 32. Nb5 {[%emt 0:16:49]} 1/2-1/2

[Event "3rd Memorial Warakomska 2019"]
[Site "Suwalki"]
[Date "2019.08.07"]
[Round "4.27"]
[White "Wiewiora, Eneasz"]
[Black "Suliborski, Jakub"]
[Result "1/2-1/2"]
[ECO "B22"]
[WhiteElo "2344"]
[BlackElo "2131"]
[Annotator "NA"]
[PlyCount "93"]
[EventDate "2019.08.05"]
[EventType "swiss"]
[EventCountry "POL"]
[SourceTitle "playchess.com"]
[Source "ChessBase"]
[SourceQuality "1"]
[TimeControl "40/5400+30:1800+30"]

1. e4 {[%emt 0:01:23]} c5 {[%emt 0:00:00]} 2. c3 {[%emt 0:00:06]} Nf6 {[%emt 0:00:22]} 3. e5 {[%emt 0:00:14]} Nd5 {[%emt 0:00:06]} 4. d4 {[%emt 0:00:06]} cxd4 {[%emt 0:00:09]} 5. cxd4 {[%emt 0:03:06]} d6 {[%emt 0:02:04]} 6. Bc4 {[%emt 0:00:36]} Nb6 {[%emt 0:00:28]} 7. Bb5+ {[%emt 0:00:04]} Bd7 {[%emt 0:01:19]} 8. e6 {[%emt 0:00:18]} Bxb5 {[%emt 0:14:22]} 9. Qh5 {[%emt 0:01:16]} Qc8 {[%emt 0:01:00]} 10. Qxb5+ {[%emt 0:00:14]} Kd8 {[%emt 0:00:08]} 11. Nc3 {[%emt 0:00:06]} Qxe6+ {[%emt 0:00:25]} 12. Nge2 {[%emt 0:02:21]} Qc4 {[%emt 0:18:06]} 13. Qg5 {[%emt 0:10:56]} N8d7 {[%emt 0:03:04]} 14. O-O {[%emt 0:03:32]} h6 {[%emt 0:02:49]} 15. Qg3 {[%emt 0:08:46]} Nf6 {[%emt 0:03:52]} 16. b3 {[%emt 0:18:11]} Qc6 {[%emt 0:05:33]} 17. Rd1 {[%emt 0:06:18]} Nbd5 {[%emt 0:07:03]} 18. Nxd5 {[%emt 0:03:14]} Nxd5 {[%emt 0:02:30]} 19. Bd2 {[%emt 0:09:03]} Rc8 {[%emt 0:06:42]} 20. Rac1 {[%emt 0:03:07]} Qd7 {[%emt 0:01:30]} 21. Nf4 {[%emt 0:14:51]} Nxf4 {[%emt 0:06:19]} 22. Qxf4 {[%emt 0:03:50]} e6 {[%emt 0:00:12]} 23. Ba5+ {[%emt 0:01:23]} b6 {[%emt 0:00:40]} 24. Bd2 {[%emt 0:00:42]} d5 {[%emt 0:01:23]} 25. Rxc8+ {[%emt 0:00:49]} Kxc8 {[%emt 0:00:30]} 26. Rc1+ {[%emt 0:00:04]} Kb7 {[%emt 0:00:05]} 27. Qg3 {[%emt 0:00:12]} g5 {[%emt 0:00:11]} 28. a4 {[%emt 0:04:18]} Bd6 {[%emt 0:02:01]} 29. Qf3 {[%emt 0:00:05]} Rc8 {[%emt 0:07:47]} 30. Rxc8 {[%emt 0:00:57]} Kxc8 {[%emt 0:00:04]} 31. g3 {[%emt 0:00:05]} Bf8 {[%emt 0:01:54]} 32. Qf6 {[%emt 0:02:20]} Qe7 {[%emt 0:00:16]} 33. Qf3 {[%emt 0:01:34]} Bg7 {[%emt 0:00:13]} 34. Qd3 {[%emt 0:00:05]} f5 {[%emt 0:00:23]} 35. a5 {[%emt 0:00:43]} Qc7 {[%emt 0:00:48]} 36. a6 {[%emt 0:02:28]} Qc6 {[%emt 0:00:21]} 37. h4 {[%emt 0:00:14]} Bf6 {[%emt 0:01:00]} 38. h5 {[%emt 0:00:25]} Qe8 {[%emt 0:00:30]} 39. Bb4 {[%emt 0:00:42]} Bg7 {[%emt 0:03:29]} 40. Ba3 {[%emt 0:00:00]} Qc6 {[%emt 0:00:00]} 41. Kg2 {[%emt 0:05:24]} Kc7 {[%emt 0:07:29]} 42. Bb4 {[%emt 0:02:42]} Qc1 {[%emt 0:09:28]} 43. Qe2 {[%emt 0:11:26]} Kd7 {[%emt 0:00:16]} 44. Qb5+ {[%emt 0:00:07]} Qc6 {[%emt 0:00:09]} 45. Qd3 {[%emt 0:00:11]} Qc1 {[%emt 0:07:18]} 46. Qb5+ {[%emt 0:00:03]} Qc6 47. Qd3 1/2-1/2

[Event "3rd Memorial Warakomska 2019"]
[Site "Suwalki"]
[Date "2019.08.07"]
[Round "4.28"]
[White "Pniaczek, Marek"]
[Black "Paszewski, Mateusz"]
[Result "1-0"]
[ECO "B51"]
[WhiteElo "2276"]
[BlackElo "2324"]
[Annotator "NA"]
[PlyCount "105"]
[EventDate "2019.08.05"]
[EventType "swiss"]
[EventCountry "POL"]
[SourceTitle "playchess.com"]
[Source "ChessBase"]
[SourceQuality "1"]
[TimeControl "40/5400+30:1800+30"]

1. e4 c5 2. Nf3 d6 3. Bb5+ Nd7 4. a4 Ngf6 5. Nc3 g6 6. a5 Bg7 7. a6 O-O 8. O-O bxa6 9. Bxa6 Bxa6 10. Rxa6 Nb8 11. Ra4 Nc6 12. Re1 Nd7 13. d3 Rb8 14. Nd2 Nb6 15. Ra2 Qd7 16. Nb3 Rfc8 17. Na5 Nxa5 18. Rxa5 Rb7 19. Qd2 Na8 20. b3 Nc7 21. Bb2 Ne6 22. Ba1 h5 23. Ne2 Nd8 24. Bxg7 Kxg7 25. Nf4 Kh7 26. Nd5 Nc6 27. Ra4 Qd8 28. f4 Qh8 29. Qf2 f6 30. Qh4 Kg7 31. Kh1 Kf7 32. Rg1 Nd4 33. Ra2 Rd8 34. Rga1 Nc6 35. Ra6 Rc8 36. Rf1 Rd7 37. Qh3 e6 38. Ne3 Nb4 39. Ra4 Rcd8 40. Rfa1 Qh6 41. Qf3 Nc6 42. Ra6 Rc8 43. f5 e5 44. fxg6+ Qxg6 45. Qh3 Rdd8 46. Rf1 Kg7 47. Nf5+ Kh8 48. Rxc6 Rxc6 49. Ne7 Qe8 50. Nxc6 Qxc6 51. Rxf6 Rd7 52. Qxh5+ Kg8 53. Qe8+ 1-0

[Event "3rd Memorial Warakomska 2019"]
[Site "Suwalki"]
[Date "2019.08.07"]
[Round "4.29"]
[White "Lis, Mateusz"]
[Black "Gurbanov, Andrei"]
[Result "0-1"]
[ECO "C63"]
[WhiteElo "2007"]
[BlackElo "2305"]
[Annotator "NA"]
[PlyCount "88"]
[EventDate "2019.08.05"]
[EventType "swiss"]
[EventCountry "POL"]
[SourceTitle "playchess.com"]
[Source "ChessBase"]
[SourceQuality "1"]
[TimeControl "40/5400+30:1800+30"]

1. e4 {[%emt 0:00:00]} e5 {[%emt 0:06:06]} 2. Nf3 {[%emt 0:00:00]} Nc6 {[%emt 0:00:36]} 3. Bb5 {[%emt 0:00:00]} f5 {[%emt 0:00:04]} 4. Nc3 {[%emt 0:01:38]} fxe4 {[%emt 0:00:24]} 5. Nxe4 {[%emt 0:00:09]} Nf6 {[%emt 0:00:35]} 6. d3 {[%emt 0:01:44]} d5 {[%emt 0:01:31]} 7. Nxf6+ {[%emt 0:05:43]} Qxf6 {[%emt 0:00:18]} 8. Bg5 {[%emt 0:01:22]} Qf5 {[%emt 0:02:53]} 9. Qe2 {[%emt 0:13:31]} Bd6 {[%emt 0:00:12]} 10. g4 {[%emt 0:18:01]} Qxg4 {[%emt 0:03:06]} 11. Bxc6+ {[%emt 0:00:10]} bxc6 {[%emt 0:00:06]} 12. Rg1 {[%emt 0:00:06]} Qh5 {[%emt 0:02:58]} 13. Nd2 {[%emt 0:15:46]} Qxe2+ {[%emt 0:01:16]} 14. Kxe2 {[%emt 0:00:04]} O-O {[%emt 0:00:13]} 15. Rg2 {[%emt 0:02:06]} Bh3 {[%emt 0:00:28]} 16. Rg3 {[%emt 0:00:06]} Bd7 {[%emt 0:00:03]} 17. Bh6 {[%emt 0:00:37]} Rf7 {[%emt 0:00:07]} 18. Rag1 {[%emt 0:00:04]} g6 {[%emt 0:00:12]} 19. R3g2 {[%emt 0:01:20]} Rf5 {[%emt 0:03:23]} 20. h4 {[%emt 0:00:54]} Re8 {[%emt 0:00:30]} 21. Bg5 {[%emt 0:03:04]} Ref8 {[%emt 0:01:09]} 22. Nf1 {[%emt 0:01:46]} e4 {[%emt 0:07:34]} 23. d4 {[%emt 0:09:08]} Rb8 {[%emt 0:02:24]} 24. b3 {[%emt 0:00:39]} Kh8 {[%emt 0:02:47]} 25. h5 {[%emt 0:00:42]} Be8 {[%emt 0:05:00]} 26. Ne3 {[%emt 0:00:55]} Rf3 {[%emt 0:00:36]} 27. Ng4 {[%emt 0:01:44]} Rh3 {[%emt 0:03:53]} 28. Bf6+ {[%emt 0:08:09]} Kg8 {[%emt 0:00:02]} 29. Be5 {[%emt 0:02:46]} Bxe5 {[%emt 0:02:02]} 30. dxe5 {[%emt 0:01:13]} Kg7 {[%emt 0:02:36]} 31. Nf6 {[%emt 0:00:16]} Bf7 {[%emt 0:00:35]} 32. Nxh7 {[%emt 0:06:38]} Rxh5 {[%emt 0:01:22]} 33. Nf6 {[%emt 0:00:52]} Rh3 {[%emt 0:03:06]} 34. Rg4 {[%emt 0:00:22]} Rbh8 {[%emt 0:02:24]} 35. Rf4 {[%emt 0:00:31]} R8h4 {[%emt 0:03:06]} 36. Rf5 {[%emt 0:01:36]} Kf8 {[%emt 0:03:54]} 37. Nd7+ {[%emt 0:01:14]} Ke7 {[%emt 0:00:02]} 38. Rf6 {[%emt 0:00:04]} Rf3 {[%emt 0:00:06]} 39. Nb8 {[%emt 0:01:17]} Rxf6 {[%emt 0:00:12]} 40. exf6+ {[%emt 0:00:00]} Kd6 {[%emt 0:00:00]} 41. c4 {[%emt 0:01:10]} Rf4 {[%emt 0:04:24]} 42. c5+ {[%emt 0:00:48]} Kxc5 {[%emt 0:00:10]} 43. Rc1+ {[%emt 0:01:20]} Kb6 {[%emt 0:05:25]} 44. b4 {[%emt 0:01:47]} Be8 {[%emt 0:01:33]} 0-1